bitfinex/quotes_BTCUSD_20260125
["timestamp","ask_amount","ask_price","bid_price","bid_amount"]
[1769319842100,0.30796577,88855.0,88839.0,0.00095483]
[1769319842304,1.47634245,88860.0,88840.0,1.15370895]
[1769319842448,0.02363252,88859.0,88841.0,0.0009548]
[1769319842656,1.12945186,88858.0,88841.0,0.0009548]
[1769319843026,0.31811607,88857.0,88841.0,0.0009548]
[1769319843154,1.13696608,88857.0,88841.0,0.0009548]
[1769319843765,0.01125302,88865.0,88841.0,0.78578684]
[1769319843959,0.81885001,88861.0,88842.0,1.10165439]
[1769319844162,0.06751875,88865.0,88842.0,1.10165439]
[1769319844163,1.13696608,88860.0,88842.0,1.10165439]
[1769319844364,0.01237874,88859.0,88842.0,1.10165439]
[1769319844968,1.13696608,88860.0,88849.0,0.29062173]
[1769319845162,1.13696608,88860.0,88843.0,1.10165439]
[1769319845905,0.01237874,88859.0,88843.0,1.10165439]
[1769319847265,0.33049481,88859.0,88843.0,1.10165439]
[1769319847463,0.31811607,88859.0,88843.0,1.10165439]
[1769319847667,0.01237874,88858.0,88844.0,0.00103598]
[1769319848267,1.13696608,88859.0,88844.0,0.00103598]
[1769319848587,0.01237874,88858.0,88844.0,0.00103598]
[1769319850834,0.01237874,88858.0,88843.0,1.10165439]
[1769319851588,0.01237874,88858.0,88844.0,0.00617506]
[1769319854810,0.95500325,88859.0,88844.0,0.00617506]
[1769319855356,0.76768411,88859.0,88844.0,0.00617506]
[1769319856227,0.76768411,88859.0,88844.0,0.01743074]
[1769319856434,0.76768411,88859.0,88844.0,0.00617506]
[1769319857830,0.77117245,88859.0,88844.0,0.00617506]
[1769319860777,0.77139245,88859.0,88844.0,0.00617506]
[1769319865085,0.77117245,88857.0,88844.0,0.00617506]
[1769319876720,0.00022,88858.0,88844.0,0.00617506]
[1769319881027,0.00022,88858.0,88848.0,0.29056072]
[1769319881203,0.00022,88858.0,88850.0,0.30614215]
[1769319881411,0.00022,88858.0,88851.0,0.00617457]
[1769319882215,0.0001466,88867.0,88855.0,0.79130193]
[1769319882415,0.0001466,88867.0,88857.0,0.29056072]
[1769319883660,0.0001466,88867.0,88856.0,0.30614215]
[1769319887806,0.0001466,88867.0,88857.0,0.00112393]
[1769319897151,0.0001466,88876.0,88860.0,0.79130193]
[1769319897329,0.00026968,88876.0,88861.0,0.31964588]
[1769319897562,0.00026968,88876.0,88862.0,0.01350358]
[1769319899872,0.00026968,88876.0,88861.0,0.30614215]
[1769319900228,0.29056072,88871.0,88861.0,0.30614215]
[1769319902347,0.00026968,88876.0,88862.0,0.79130193]
[1769319902552,0.01139709,88885.0,88867.0,0.30614215]
[1769319902553,0.0001466,88885.0,88867.0,0.30614215]
[1769319902703,0.0001466,88885.0,88870.0,0.31506164]
[1769319902915,0.0001466,88885.0,88870.0,0.76814029]
[1769319903112,0.0001466,88885.0,88871.0,0.31506164]
[1769319904081,0.81652378,88888.0,88871.0,0.31506164]
[1769319904281,0.81652378,88888.0,88871.0,0.48794164]
[1769319909571,0.84676753,88887.0,88871.0,0.48794164]
[1769319910128,0.63768586,88887.0,88871.0,0.48794164]
[1769319912121,0.63768586,88887.0,88872.0,0.00649213]
[1769319922230,0.29056072,88890.0,88873.0,1.16725861]
[1769319922429,0.29056072,88890.0,88875.0,0.31505785]
[1769319922592,0.29056072,88890.0,88876.0,0.00649219]
[1769319923774,1.09892349,88890.0,88876.0,0.00649219]
[1769319924506,0.80836277,88889.0,88876.0,0.00649219]
[1769319924735,1.11017385,88886.0,88874.0,0.00649219]
[1769319925012,1.11017385,88886.0,88871.0,0.16987322]
[1769319925013,1.1101741,88884.0,88871.0,0.16987322]
[1769319925189,0.29056072,88881.0,88871.0,0.16987322]
[1769319928231,0.80836277,88884.0,88871.0,0.16987322]
[1769319928436,0.0064923,88883.0,88871.0,0.16987322]
[1769319932723,0.0064923,88885.0,88871.0,0.16987322]
[1769319933856,0.0064923,88885.0,88872.0,0.00112521]
[1769319937873,0.30931134,88886.0,88872.0,0.00112521]
[1769319940453,0.59904814,88889.0,88872.0,0.00112521]
[1769319941275,0.59904814,88889.0,88872.0,0.00227153]
[1769319944044,0.59904814,88889.0,88872.0,0.29085332]
[1769319944243,0.59904814,88889.0,88872.0,0.28858179]
[1769319944448,0.29039086,88890.0,88873.0,0.00113699]
[1769319944649,0.29039086,88890.0,88875.0,0.76767806]
[1769319944853,0.29039086,88890.0,88877.0,0.28858179]
[1769319946587,0.06099478,88890.0,88877.0,0.28858179]
[1769319948669,0.06099478,88890.0,88877.0,1.05625985]
[1769319954054,0.0064923,88894.0,88877.0,1.05625985]
[1769319954731,0.803396,88894.0,88877.0,1.05625985]
[1769319954943,0.7969037,88894.0,88877.0,1.05625985]
[1769319955096,0.0064923,88893.0,88877.0,1.05625985]
[1769319956131,0.0064923,88893.0,88877.0,0.28858179]
[1769319956325,1.11522467,88897.0,88877.0,0.28858179]
[1769319956326,1.11522467,88897.0,88880.0,0.28858179]
[1769319957112,0.7969037,88896.0,88880.0,0.28858179]
[1769319962557,0.7969037,88896.0,88880.0,0.76767806]
[1769319962817,0.7969037,88896.0,88881.0,0.28858179]
[1769319963014,0.31832097,88897.0,88881.0,1.0744593]
[1769319963232,0.0001459,88898.0,88882.0,1.09154883]
[1769319964166,0.0001459,88898.0,88883.0,0.30567132]
[1769319964424,0.0001459,88898.0,88884.0,0.30567132]
[1769319964767,0.0001334,88898.0,88884.0,0.30567132]
[1769319966707,0.0001334,88898.0,88885.0,0.78587751]
[1769319966864,0.0001334,88898.0,88888.0,0.30567132]
[1769319967091,0.0001334,88898.0,88890.0,0.78587751]
[1769319967404,0.0001334,88898.0,88891.0,0.30567132]
[1769319970441,0.0001334,88898.0,88893.0,0.30567132]
[1769319970649,0.0001334,88898.0,88895.0,0.30567132]
[1769319974750,0.0001334,88898.0,88885.0,0.17284]
[1769319974751,0.0001334,88898.0,88896.0,1.06511683]
[1769319975154,0.0001334,88898.0,88896.0,0.29326877]
[1769319975354,0.0001479,88906.0,88897.0,0.77184806]
[1769319975512,0.00029058,88906.0,88897.0,1.06511683]
[1769319980343,0.00029058,88906.0,88898.0,0.0005349]
[1769319984924,0.00029058,88906.0,88898.0,0.29380367]
[1769319985143,0.00029058,88906.0,88898.0,0.29326877]
[1769319985791,0.00029058,88906.0,88899.0,0.00053583]
[1769319988097,0.00029058,88906.0,88899.0,0.2938046]
[1769319988439,0.00029058,88906.0,88899.0,0.29326877]
[1769319988938,0.00029058,88906.0,88900.0,0.00034808]
[1769319990030,0.00029058,88906.0,88900.0,0.00084295]
[1769320010320,0.0001479,88915.0,88900.0,0.00084295]
[1769320010321,1.06890081,88915.0,88900.0,0.00084295]
[1769320015618,1.06890081,88915.0,88900.0,0.00590113]
[1769320021002,1.06890081,88915.0,88900.0,0.29611911]
[1769320021211,1.06890081,88915.0,88900.0,0.29021798]
[1769320021957,1.06890081,88915.0,88901.0,0.00363138]
[1769320022159,1.06890081,88915.0,88899.0,0.29326877]
[1769320022160,0.30298824,88915.0,88900.0,0.00363138]
[1769320022358,0.76591257,88913.0,88900.0,0.00363138]
[1769320022559,0.76591257,88913.0,88899.0,0.00363142]
[1769320030431,0.59739461,88920.0,88899.0,1.03959954]
[1769320030628,1.22625115,88919.0,88900.0,0.29021798]
[1769320030839,0.92556682,88918.0,88900.0,0.29021798]
[1769320031043,0.91907452,88917.0,88900.0,0.29021798]
[1769320031266,0.80662573,88917.0,88901.0,0.00335486]
[1769320031921,1.12504804,88923.0,88903.0,0.29038252]
[1769320032127,0.11245149,88922.0,88906.0,0.29038252]
[1769320032350,0.11245149,88922.0,88907.0,0.00346524]
[1769320032553,0.11245149,88922.0,88908.0,0.29038252]
[1769320032884,0.0001479,88924.0,88908.0,0.29038252]
[1769320037372,0.0001479,88924.0,88909.0,0.00332831]
[1769320041882,0.0001479,88924.0,88910.0,0.76319449]
[1769320042118,0.0001479,88924.0,88911.0,0.00383979]
[1769320044155,0.0001479,88924.0,88911.0,0.01395206]
[1769320049898,0.0066402,88924.0,88911.0,0.01395206]
[1769320050303,0.0001479,88924.0,88911.0,0.01395206]
[1769320050506,0.0066402,88924.0,88911.0,0.01395206]
[1769320050838,0.0001479,88924.0,88911.0,0.01395206]
[1769320051169,0.0066402,88924.0,88911.0,0.01395206]
[1769320051303,0.0001479,88924.0,88911.0,0.01395206]
[1769320051506,0.0066402,88924.0,88911.0,0.01395206]
[1769320051711,0.0001479,88924.0,88911.0,0.01395206]
[1769320051914,0.0066402,88924.0,88911.0,0.01395206]
[1769320052181,0.0001479,88924.0,88911.0,0.01395206]
[1769320052386,0.0066402,88924.0,88911.0,0.01395206]
[1769320052533,0.0001479,88924.0,88911.0,0.01395206]
[1769320052731,0.0066402,88924.0,88911.0,0.01395206]
[1769320052930,0.0001479,88924.0,88911.0,0.01395206]
[1769320053153,0.0066402,88924.0,88911.0,0.01395206]
[1769320053375,0.0001479,88924.0,88911.0,0.01395206]
[1769320053571,0.0066402,88924.0,88911.0,0.01395206]
[1769320053774,0.0001479,88924.0,88911.0,0.01395206]
[1769320053995,0.0066402,88924.0,88911.0,0.01395206]
[1769320054198,0.0001479,88924.0,88911.0,0.01395206]
[1769320054433,0.0066402,88924.0,88911.0,0.01395206]
[1769320054588,0.0001479,88924.0,88911.0,0.01395206]
[1769320062827,0.2857521,88929.0,88911.0,0.0204456]
[1769320063004,0.73501062,88928.0,88911.0,0.0204456]
[1769320063210,0.73501062,88928.0,88911.0,0.31458436]
[1769320063408,0.73501062,88928.0,88911.0,0.29413876]
[1769320064027,0.73501062,88928.0,88912.0,0.01082694]
[1769320064395,0.00047548,88929.0,88912.0,0.01082694]
[1769320064611,0.00047548,88929.0,88910.0,0.29015346]
[1769320064612,0.00047548,88929.0,88915.0,0.75290129]
[1769320064823,0.00047548,88929.0,88916.0,0.30496659]
[1769320065084,0.00047548,88929.0,88916.0,0.29413876]
[1769320068007,0.00047548,88929.0,88917.0,0.01084372]
[1769320071245,0.00047548,88929.0,88917.0,0.01757351]
[1769320072486,0.51139229,88929.0,88911.0,0.01757351]
[1769320072688,0.52263721,88929.0,88911.0,0.01757351]
[1769320072870,0.01124505,88928.0,88911.0,0.01757351]
[1769320073068,0.01124517,88927.0,88911.0,0.01757351]
[1769320073475,0.0112453,88926.0,88911.0,0.01757351]
[1769320073859,0.01124517,88927.0,88911.0,0.01757351]
[1769320074185,0.0112453,88926.0,88911.0,0.01757351]
[1769320074732,0.01124517,88927.0,88911.0,0.01757351]
[1769320076036,0.0112453,88926.0,88911.0,0.01757351]
[1769320078409,0.06747048,88928.0,88911.0,0.01757351]
[1769320078585,0.01124517,88927.0,88911.0,0.01757351]
[1769320079519,0.01124505,88928.0,88911.0,0.01757351]
[1769320079956,0.52263721,88929.0,88911.0,0.01757351]
[1769320080456,0.51139229,88929.0,88911.0,0.01757351]
[1769320080598,0.51139229,88929.0,88911.0,0.31171227]
[1769320080795,0.51139229,88929.0,88911.0,0.29413876]
[1769320081012,0.51139229,88929.0,88912.0,0.01755207]
[1769320082399,0.29699803,88921.0,88912.0,0.01755207]
[1769320082601,0.51091681,88917.0,88901.0,0.29428666]
[1769320083008,0.51091681,88917.0,88901.0,0.3568388]
[1769320086726,0.51075839,88917.0,88901.0,0.3568388]
[1769320089625,0.29765587,88917.0,88901.0,0.3568388]
[1769320090463,0.30890231,88917.0,88901.0,0.3568388]
[1769320091601,0.29765587,88917.0,88901.0,0.3568388]
[1769320095511,0.29765587,88917.0,88901.0,0.79859189]
[1769320095737,0.29765587,88917.0,88901.0,1.08164924]
[1769320097210,0.29765587,88917.0,88901.0,0.79859189]
[1769320097506,0.29015346,88920.0,88903.0,0.73589185]
[1769320097690,0.0120388,88919.0,88903.0,1.0189492]
[1769320098108,0.0120388,88919.0,88904.0,0.28305735]
[1769320101138,0.0120388,88922.0,88904.0,0.28305735]
[1769320103883,0.61918963,88922.0,88904.0,0.28305735]
[1769320104092,0.60715083,88922.0,88904.0,0.28305735]
[1769320104332,0.0120388,88921.0,88904.0,0.28305735]
[1769320105362,0.0120388,88921.0,88906.0,0.28305735]
[1769320105549,0.31182728,88924.0,88906.0,0.28305735]
[1769320105725,0.31182728,88923.0,88906.0,0.28305735]
[1769320106048,0.29978848,88923.0,88906.0,0.28305735]
[1769320106354,0.0120388,88922.0,88906.0,0.28305735]
[1769320109960,0.29015346,88920.0,88906.0,0.28305735]
[1769320110171,0.0120388,88919.0,88906.0,0.28305735]
[1769320112143,0.0120388,88922.0,88906.0,0.28305735]
[1769320112909,0.0120388,88922.0,88907.0,0.00434967]
[1769320121377,0.13166532,88923.0,88907.0,0.01639049]
[1769320124530,0.03374234,88927.0,88908.0,1.02043378]
[1769320124731,0.16708889,88927.0,88909.0,0.01639012]
[1769320124932,0.13334655,88926.0,88909.0,0.01639012]
[1769320125196,0.03374234,88927.0,88909.0,0.01639012]
[1769320125430,0.03374234,88927.0,88911.0,0.7391089]
[1769320125639,0.03374234,88927.0,88913.0,0.28132488]
[1769320125834,0.03374234,88927.0,88914.0,0.01638919]
[1769320129737,0.05154234,88927.0,88914.0,0.01638919]
[1769320139435,0.59863942,88930.0,88914.0,0.01638919]
[1769320139654,0.59873027,88930.0,88914.0,0.01638919]
[1769320140035,0.59873027,88930.0,88914.0,0.01639445]
[1769320140282,0.58748548,88930.0,88913.0,0.28132488]
[1769320142594,0.28867008,88930.0,88913.0,0.28132488]
[1769320142802,0.28867008,88930.0,88915.0,0.30973603]
[1769320142979,9.085e-05,88930.0,88917.0,0.25344007]
[1769320143209,0.29026578,88930.0,88920.0,0.75536289]
[1769320143407,0.30150982,88930.0,88920.0,0.75519381]
[1769320147094,9.085e-05,88930.0,88921.0,0.30973603]
[1769320147301,9.085e-05,88930.0,88922.0,0.9645108]
[1769320147486,9.085e-05,88930.0,88922.0,0.85192268]
[1769320147656,9.085e-05,88930.0,88922.0,0.79562862]
[1769320147866,9.085e-05,88930.0,88922.0,0.6835405]
[1769320148142,9.085e-05,88930.0,88922.0,0.57095238]
[1769320148326,9.085e-05,88930.0,88922.0,0.51465832]
[1769320148491,9.085e-05,88930.0,88922.0,0.4020702]
[1769320148688,9.085e-05,88930.0,88922.0,0.34577614]
[1769320148890,9.085e-05,88930.0,88922.0,0.28948208]
[1769320149110,9.085e-05,88930.0,88922.0,0.23318802]
[1769320159935,9.085e-05,88930.0,88918.0,0.76736289]
[1769320160148,9.085e-05,88930.0,88919.0,0.01768727]
[1769320172040,0.29026578,88930.0,88919.0,0.01768727]
[1769320174961,0.29019397,88930.0,88919.0,0.01768727]
[1769320175716,9.085e-05,88930.0,88919.0,0.01768727]
[1769320184862,9.085e-05,88930.0,88920.0,0.30155067]
[1769320185064,9.085e-05,88930.0,88921.0,0.01768687]
[1769320187730,0.32032792,88936.0,88921.0,0.01768687]
[1769320187882,1.08286147,88936.0,88921.0,0.01777772]
[1769320191971,0.76253355,88936.0,88921.0,0.31932839]
[1769320192137,0.76253355,88936.0,88921.0,0.30164152]
[1769320194812,0.76253355,88936.0,88922.0,0.00043418]
[1769320195650,0.0004,88939.0,88922.0,0.00043418]
[1769320195819,0.0004,88939.0,88921.0,1.11982639]
[1769320196161,0.0004,88939.0,88922.0,0.00649544]
[1769320196364,0.76293355,88939.0,88922.0,0.00649544]
[1769320196589,1.08326147,88939.0,88922.0,0.00649544]
[1769320197540,0.76253355,88938.0,88922.0,0.00649544]
[1769320197887,0.0004,88939.0,88924.0,0.30155067]
[1769320198087,0.0004,88939.0,88925.0,0.30804589]
[1769320198298,0.0004,88939.0,88925.0,0.30155067]
[1769320198501,0.0004,88939.0,88925.0,1.11973554]
[1769320200238,0.0004,88939.0,88926.0,0.00649536]
[1769320201103,0.0004,88939.0,88928.0,0.30155067]
[1769320201302,0.0004,88939.0,88929.0,0.00649514]
[1769320203603,0.0004,88939.0,88923.0,0.00449805]
[1769320203807,0.0004,88939.0,88924.0,0.01271164]
[1769320205040,0.0004,88939.0,88923.0,0.00449805]
[1769320208367,0.76293355,88939.0,88923.0,0.00449805]
[1769320208505,1.05486831,88939.0,88923.0,0.00449805]
[1769320210493,0.01124391,88937.0,88923.0,0.00449805]
[1769320210696,0.01124378,88938.0,88922.0,0.32067641]
[1769320210938,0.01124391,88937.0,88922.0,0.32067641]
[1769320211330,0.01124378,88938.0,88922.0,0.32067641]
[1769320211529,1.05486831,88939.0,88930.0,0.32067641]
[1769320211530,0.0004,88939.0,88930.0,0.32067641]
[1769320211796,0.03373198,88951.0,88932.0,1.1564223]
[1769320211962,0.29025102,88950.0,88932.0,1.1564223]
[1769320212542,0.30149329,88950.0,88932.0,1.1564223]
[1769320213224,0.29025102,88950.0,88932.0,1.1564223]
[1769320217684,0.29025102,88950.0,88930.0,0.35110216]
[1769320217685,0.0001479,88950.0,88938.0,0.29010312]
[1769320217885,0.0001479,88950.0,88939.0,1.11726113]
[1769320218811,0.0001479,88950.0,88940.0,0.01646264]
[1769320221070,0.01164176,88954.0,88943.0,0.79389347]
[1769320221071,0.0004,88954.0,88943.0,0.79389347]
[1769320221288,0.01204176,88966.0,88944.0,0.79389347]
[1769320221496,0.023282,88966.0,88947.0,0.32336766]
[1769320221700,0.023282,88966.0,88947.0,1.11726113]
[1769320221902,0.81820045,88966.0,88947.0,1.11726113]
[1769320222114,0.81820045,88966.0,88945.0,0.03372645]
[1769320222328,0.81820045,88966.0,88941.0,0.0112434]
[1769320222329,0.0004,88966.0,88950.0,0.79389347]
[1769320222739,0.01164024,88966.0,88950.0,0.79389347]
[1769320222945,0.01124037,88965.0,88950.0,0.03372398]
[1769320223149,0.29010312,88960.0,88950.0,0.03372398]
[1769320223650,0.00059541,88959.0,88950.0,0.03372398]
[1769320224446,0.01164024,88966.0,88950.0,0.03372398]
[1769320224447,0.29888999,88976.0,88950.0,0.03372398]
[1769320224811,0.8173978,88975.0,88950.0,0.04501376]
[1769320225024,0.29010312,88970.0,88951.0,0.32336766]
[1769320225239,0.01123999,88968.0,88951.0,0.32336766]
[1769320225475,0.01124075,88962.0,88951.0,0.03372311]
[1769320225696,1.3947518,88961.0,88950.0,4.751e-05]
[1769320225904,0.80615869,88960.0,88950.0,4.751e-05]
[1769320231586,0.58859311,88961.0,88950.0,4.751e-05]
[1769320233928,0.49295318,88961.0,88950.0,4.751e-05]
[1769320234880,0.19446319,88961.0,88950.0,4.751e-05]
[1769320236961,0.28992212,88960.0,88950.0,4.751e-05]
[1769320238716,0.80647538,88964.0,88950.0,4.751e-05]
[1769320239081,0.3140446,88966.0,88950.0,4.751e-05]
[1769320239288,0.30280436,88966.0,88950.0,4.751e-05]
[1769320241213,0.30280436,88966.0,88950.0,0.28996963]
[1769320242946,1.10927974,88966.0,88950.0,0.28996963]
[1769320247167,1.10927974,88966.0,88951.0,0.00585692]
[1769320247554,0.80647538,88966.0,88951.0,0.32079104]
[1769320247777,0.80647538,88966.0,88951.0,0.31493412]
[1769320247951,0.80647538,88966.0,88952.0,0.00621699]
[1769320249736,0.80647538,88966.0,88952.0,0.00582675]
[1769320249886,0.03372425,88969.0,88952.0,0.00582675]
[1769320250952,0.03372425,88969.0,88952.0,0.32076087]
[1769320251072,0.03372425,88969.0,88952.0,0.31493412]
[1769320251702,0.03372425,88969.0,88959.0,0.28992212]
[1769320251923,0.03372425,88969.0,88962.0,0.31485714]
[1769320252080,0.03372425,88969.0,88961.0,0.85835848]
[1769320252282,0.0004,88976.0,88962.0,0.00626561]
[1769320252706,0.03372425,88975.0,88962.0,0.00626561]
[1769320253122,0.04496336,88975.0,88962.0,0.00626561]
[1769320253299,0.03372425,88975.0,88962.0,0.00626561]
[1769320253498,0.31444334,88976.0,88962.0,0.00626561]
[1769320253735,0.14619299,88975.0,88962.0,0.00626561]
[1769320253978,0.03372425,88975.0,88962.0,0.00626561]
[1769320254272,0.31444334,88976.0,88962.0,0.00626561]
[1769320254533,0.14619684,88975.0,88962.0,0.00626561]
[1769320254705,0.03372425,88975.0,88962.0,0.00626561]
[1769320254867,0.0004,88976.0,88962.0,0.00626561]
[1769320255083,0.00039035,88975.0,88962.0,0.00626561]
[1769320255269,0.03372148,88975.0,88963.0,0.85835848]
[1769320255468,0.03372148,88975.0,88964.0,0.00736127]
[1769320259279,0.03372148,88975.0,88964.0,1.18065387]
[1769320259411,0.03372148,88975.0,88964.0,1.1732926]
[1769320260620,0.03372148,88975.0,88965.0,0.00591459]
[1769320260830,0.0004,88976.0,88965.0,0.00591459]
[1769320261231,0.03412148,88976.0,88965.0,0.00591459]
[1769320263451,0.0004,88976.0,88965.0,0.00591459]
[1769320264517,0.0004,88976.0,88960.0,0.28992212]
[1769320264518,0.0004,88976.0,88961.0,0.00591459]
[1769320266267,0.0004,88976.0,88961.0,0.83909191]
[1769320266493,0.0004,88976.0,88961.0,0.83317732]
[1769320267028,0.0004,88976.0,88966.0,0.28992212]
[1769320267399,0.0004,88976.0,88967.0,0.00591426]
[1769320271580,0.0004,88976.0,88967.0,0.83909158]
[1769320271789,0.0004,88976.0,88968.0,0.83317732]
[1769320272621,0.0004,88976.0,88969.0,0.00574756]
[1769320275528,0.00524756,88969.0,88961.0,0.79754213]
[1769320275957,0.0004,88976.0,88961.0,0.79754213]
[1769320276451,0.0004,88976.0,88962.0,0.0011346]
[1769320278443,0.0004,88976.0,88962.0,0.00579349]
[1769320280337,0.0003,88977.0,88962.0,0.00579349]
[1769320282106,0.31178026,88977.0,88962.0,0.00579349]
[1769320282312,1.12289792,88977.0,88961.0,0.79754213]
[1769320283466,1.12289792,88977.0,88961.0,1.1136579]
[1769320283666,0.31178026,88977.0,88961.0,0.31611577]
[1769320283869,0.31178026,88977.0,88962.0,0.79754213]
[1769320288152,0.14367969,88977.0,88962.0,0.79754213]
[1769320293187,0.0001254,88978.0,88962.0,0.79754213]
[1769320293524,0.0001254,88978.0,88963.0,0.29234396]
[1769320295929,0.61965223,88979.0,88963.0,0.29234396]
[1769320296559,0.93522611,88979.0,88963.0,0.29234396]
[1769320297852,0.93522611,88979.0,88963.0,1.08662873]
[1769320300922,0.01123873,88978.0,88963.0,1.08662873]
[1769320301089,0.66162616,88975.0,88960.0,0.46245371]
[1769320301293,0.97720004,88975.0,88960.0,0.46245371]
[1769320301941,0.98843915,88975.0,88960.0,0.46245371]
[1769320302146,0.29017371,88980.0,88956.0,0.0001488]
[1769320302147,0.62697734,88968.0,88956.0,0.0001488]
[1769320302350,0.31557388,88968.0,88956.0,0.0001488]
[1769320302524,0.62697734,88967.0,88956.0,0.0001488]
[1769320304825,0.31557388,88968.0,88956.0,0.0001488]
[1769320305161,0.62697734,88967.0,88956.0,0.0001488]
[1769320305367,0.62697734,88965.0,88956.0,0.0001488]
[1769320308868,0.31557388,88965.0,88956.0,0.0001488]
[1769320309070,0.94255122,88964.0,88956.0,0.0001488]
[1769320317411,0.01124037,88965.0,88956.0,0.0001488]
[1769320317596,0.95379184,88963.0,88956.0,0.0001488]
[1769320317807,0.62697734,88962.0,88956.0,0.0001488]
[1769320318585,0.63821809,88962.0,88956.0,0.0001488]
[1769320318768,0.62697734,88962.0,88956.0,0.0001488]
[1769320319550,0.01124075,88962.0,88956.0,0.0001488]
[1769320319755,0.95379184,88963.0,88956.0,0.0001488]
[1769320320004,0.01124075,88962.0,88956.0,0.0001488]
[1769320320384,0.95379184,88963.0,88956.0,0.0001488]
[1769320320805,0.94255122,88963.0,88956.0,0.0001488]
[1769320325682,0.95379184,88963.0,88956.0,0.0001488]
[1769320325926,0.01124075,88962.0,88956.0,0.0001488]
[1769320326081,0.74221719,88963.0,88956.0,0.0001488]
[1769320326874,0.00039035,88962.0,88956.0,0.0001488]
[1769320338100,0.00039035,88966.0,88956.0,0.0001488]
[1769320338735,0.00039035,88967.0,88956.0,0.0001488]
[1769320339152,0.01163047,88967.0,88956.0,0.0001488]
[1769320339579,0.01124024,88966.0,88956.0,0.0001488]
[1769320339793,0.00039035,88965.0,88956.0,0.0001488]
[1769320340332,0.00039035,88967.0,88956.0,0.0001488]
[1769320340538,0.01163047,88967.0,88956.0,0.0001488]
[1769320341589,0.01124024,88966.0,88956.0,0.0001488]
[1769320341774,0.01163072,88965.0,88956.0,0.0001488]
[1769320342769,0.00039035,88965.0,88956.0,0.0001488]
[1769320344292,0.01163072,88965.0,88956.0,0.0001488]
[1769320344490,0.0112405,88964.0,88956.0,0.0001488]
[1769320344703,0.00039035,88963.0,88956.0,0.0001488]
[1769320344902,0.00039035,88964.0,88956.0,0.0001488]
[1769320345439,0.01163085,88964.0,88956.0,0.0001488]
[1769320345657,0.01124062,88963.0,88956.0,0.0001488]
[1769320345801,0.42885491,88962.0,88950.0,4.751e-05]
[1769320346008,0.42885491,88962.0,88947.0,0.0001488]
[1769320346009,0.01124088,88961.0,88947.0,0.0001488]
[1769320346192,0.00039035,88960.0,88947.0,0.0001488]
[1769320346390,0.01163135,88960.0,88947.0,0.0001488]
[1769320346794,0.00039035,88960.0,88947.0,0.0001488]
[1769320347018,0.00053281,88961.0,88947.0,0.0001488]
[1769320349354,0.01177369,88961.0,88947.0,0.0001488]
[1769320349552,0.011241,88960.0,88947.0,0.0001488]
[1769320349700,0.00039035,88959.0,88947.0,0.0001488]
[1769320350052,0.00053281,88961.0,88947.0,0.0001488]
[1769320350352,0.01177369,88961.0,88947.0,0.0001488]
[1769320350535,0.00053281,88961.0,88947.0,0.0001488]
[1769320351256,0.01177369,88961.0,88947.0,0.0001488]
[1769320351457,0.00053281,88961.0,88947.0,0.0001488]
[1769320352562,0.28977371,88960.0,88947.0,0.0001488]
[1769320352765,0.31110197,88958.0,88947.0,0.0001488]
[1769320352966,0.00039035,88957.0,88947.0,0.0001488]
[1769320356683,0.00039035,88958.0,88947.0,0.325322]
[1769320356881,0.00053281,88961.0,88947.0,0.325322]
[1769320358693,0.00053281,88961.0,88947.0,1.15740056]
[1769320358832,0.00014246,88961.0,88947.0,1.15740056]
[1769320363230,0.33961019,88966.0,88947.0,1.15740056]
[1769320363436,0.32502085,88966.0,88947.0,1.15740056]
[1769320363615,0.67587128,88966.0,88947.0,1.15740056]
[1769320363810,0.67575397,88965.0,88947.0,1.15740056]
[1769320366705,0.6645136,88965.0,88947.0,1.15740056]
[1769320367301,0.32490341,88965.0,88947.0,1.15740056]
[1769320367500,0.33961019,88964.0,88947.0,1.15740056]
[1769320372751,0.33961019,88964.0,88947.0,0.0001488]
[1769320372927,0.00011744,88966.0,88949.0,0.3251732]
[1769320374407,0.35096787,88966.0,88949.0,0.3251732]
[1769320375381,0.33972763,88966.0,88949.0,0.3251732]
[1769320375713,0.33972763,88966.0,88950.0,0.00112948]
[1769320375916,0.1124797,88965.0,88950.0,0.00112948]
[1769320376142,0.1124797,88965.0,88950.0,0.00107909]
[1769320376354,0.00027987,88964.0,88950.0,0.00079224]
[1769320376554,0.00073883,88964.0,88950.0,0.00039065]
[1769320376700,0.00073883,88964.0,88949.0,0.3251732]
[1769320380277,0.00073883,88964.0,88950.0,0.00283346]
[1769320380478,0.00073883,88964.0,88947.0,0.0001488]
[1769320380479,0.28991933,88960.0,88947.0,0.0001488]
[1769320380703,0.00091094,88959.0,88947.0,0.0001488]
[1769320384205,0.01124075,88962.0,88947.0,0.0001488]
[1769320384805,0.35085081,88963.0,88947.0,0.0001488]
[1769320385339,0.33961019,88963.0,88947.0,0.0001488]
[1769320385648,0.35085081,88963.0,88947.0,0.0001488]
[1769320387645,0.33961019,88963.0,88947.0,0.0001488]
[1769320388844,0.35085081,88963.0,88947.0,0.0001488]
[1769320389076,0.33961019,88963.0,88947.0,0.0001488]
[1769320392702,0.01124075,88962.0,88947.0,0.0001488]
[1769320392896,0.35085081,88963.0,88947.0,0.0001488]
[1769320393103,0.01124075,88962.0,88947.0,0.0001488]
[1769320393300,0.35085081,88963.0,88947.0,0.0001488]
[1769320394321,0.1124537,88962.0,88947.0,0.0001488]
[1769320396828,0.35085081,88963.0,88947.0,0.0001488]
[1769320396995,0.11245325,88962.0,88947.0,0.30129299]
[1769320398211,0.11245325,88962.0,88947.0,1.13761079]
[1769320400605,0.11245325,88962.0,88947.0,0.8364666]
[1769320400805,0.11245325,88962.0,88948.0,0.30114419]
[1769320403562,0.22526173,88963.0,88948.0,0.30114419]
[1769320403769,0.32490341,88964.0,88948.0,0.30114419]
[1769320404375,0.32490341,88964.0,88948.0,1.13746199]
[1769320405122,0.01135768,88966.0,88949.0,0.01553199]
[1769320405332,0.00011744,88966.0,88949.0,0.01553199]
[1769320405776,0.00011744,88966.0,88949.0,0.31667618]
[1769320405972,0.00011744,88966.0,88949.0,1.13746199]
[1769320407248,0.00011744,88966.0,88950.0,0.00346743]
[1769320408414,0.00011744,88966.0,88950.0,0.30114419]
[1769320408606,0.00011744,88966.0,88951.0,0.00571582]
[1769320413922,0.01135768,88966.0,88951.0,0.00571582]
[1769320414086,0.00011744,88966.0,88951.0,0.00571582]
[1769320414568,0.01135768,88966.0,88951.0,0.00571582]
[1769320415926,0.00011744,88966.0,88951.0,0.00571582]
[1769320416867,0.1125673,88966.0,88953.0,0.3271378]
[1769320417075,0.00011744,88966.0,88956.0,0.83687765]
[1769320417274,0.00011744,88966.0,88958.0,0.3271378]
[1769320418495,0.00011744,88966.0,88958.0,1.16401545]
[1769320419633,0.00011744,88966.0,88952.0,0.3271378]
[1769320419833,0.1124111,88975.0,88953.0,0.00651813]
[1769320420030,0.11250718,88975.0,88956.0,0.83687765]
[1769320420266,0.11250718,88975.0,88960.0,0.83687765]
[1769320420459,0.11250718,88975.0,88963.0,0.3271378]
[1769320420665,0.437478,88974.0,88963.0,1.16401545]
[1769320420859,0.437396,88972.0,88963.0,1.16401545]
[1769320421066,0.1124111,88971.0,88963.0,1.16401545]
[1769320421233,0.1124111,88970.0,88963.0,1.16401545]
[1769320421427,0.437478,88974.0,88963.0,1.16401545]